[Event "*** Titled Tuesday Blitz"]
[Site "Chess.com"]
[Date "2021.04.20"]
[Round "2"]
[White "RamyresCoelho"]
[Black "Promacherr"]
[Result "1-0"]
[WhiteElo "2222"]
[BlackElo "2609"]
[TimeControl "180+1"]
[EndTime "10:14:57 PDT"]
[Termination "RamyresCoelho won by checkmate"]

1. e4 {[%clk 0:02:59.6]} 1... e6 {[%clk 0:03:00.3]} 2. d4 {[%clk 0:02:59.2]}
2... d5 {[%clk 0:03:00.8]} 3. Nc3 {[%clk 0:02:58.4]} 3... Nf6 {[%clk 0:03:01]}
4. e5 {[%clk 0:02:57.8]} 4... Nfd7 {[%clk 0:03:01.3]} 5. f4 {[%clk 0:02:57.9]}
5... c5 {[%clk 0:03:01.9]} 6. Nf3 {[%clk 0:02:58.5]} 6... Nc6 {[%clk 0:03:02.8]}
7. Be3 {[%clk 0:02:58.4]} 7... Be7 {[%clk 0:03:03.7]} 8. Be2 {[%clk 0:02:56.2]}
8... O-O {[%clk 0:03:03.8]} 9. O-O {[%clk 0:02:56.7]} 9... a6 {[%clk 0:03:04.3]}
10. a4 {[%clk 0:02:53.6]} 10... Qc7 {[%clk 0:03:03.5]} 11. Qe1 {[%clk 0:02:53]}
11... cxd4 {[%clk 0:03:01]} 12. Nxd4 {[%clk 0:02:52.7]} 12... Nxd4 {[%clk
0:03:01.4]} 13. Bxd4 {[%clk 0:02:53.6]} 13... Bc5 {[%clk 0:03:01.7]} 14. Bxc5
{[%clk 0:02:52.7]} 14... Qxc5+ {[%clk 0:03:02.6]} 15. Kh1 {[%clk 0:02:52.6]}
15... f6 {[%clk 0:03:02.7]} 16. exf6 {[%clk 0:02:51.6]} 16... Nxf6 {[%clk
0:03:03.6]} 17. Bd3 {[%clk 0:02:41.5]} 17... Bd7 {[%clk 0:03:02.6]} 18. Rf3
{[%clk 0:02:25.8]} 18... Rae8 {[%clk 0:03:02.3]} 19. Qh4 {[%clk 0:02:20.1]}
19... h6 {[%clk 0:02:59.4]} 20. Rg3 {[%clk 0:02:14.3]} 20... Kh8 {[%clk
0:02:45.6]} 21. Rg6 {[%clk 0:02:02.8]} 21... Qe7 {[%clk 0:02:37.4]} 22. Re1
{[%clk 0:01:52.6]} 22... Bc6 {[%clk 0:02:27.5]} 23. Re5 {[%clk 0:00:59.7]} 23...
Nd7 {[%clk 0:02:22.7]} 24. Rxh6+ {[%clk 0:00:53.2]} 24... Kg8 {[%clk 0:01:46.2]}
25. Rh8+ {[%clk 0:00:49.8]} 25... Kf7 {[%clk 0:01:46.6]} 26. Qh5+ {[%clk
0:00:41.9]} 26... Kf6 {[%clk 0:01:46.7]} 27. Qg6# {[%clk 0:00:38.2]} 1-0

[Event "*** Titled Tuesday Blitz"]
[Site "Chess.com"]
[Date "2021.04.20"]
[Round "2"]
[White "mjray79"]
[Black "rikyshi"]
[Result "1-0"]
[WhiteElo "2421"]
[BlackElo "2177"]
[TimeControl "180+1"]
[EndTime "10:15:01 PDT"]
[Termination "mjray79 won on time"]

1. d4 {[%clk 0:03:00.9]} 1... Nf6 {[%clk 0:02:57.9]} 2. c4 {[%clk 0:03:00.9]}
2... g6 {[%clk 0:02:57.8]} 3. Nc3 {[%clk 0:02:59.8]} 3... d5 {[%clk 0:02:57.7]}
4. cxd5 {[%clk 0:03:00.7]} 4... Nxd5 {[%clk 0:02:57.9]} 5. e4 {[%clk 0:03:01.6]}
5... Nxc3 {[%clk 0:02:58.4]} 6. bxc3 {[%clk 0:03:02.5]} 6... Bg7 {[%clk
0:02:58.7]} 7. Bc4 {[%clk 0:03:03.1]} 7... O-O {[%clk 0:02:57.3]} 8. Ne2 {[%clk
0:03:03.6]} 8... c5 {[%clk 0:02:50.5]} 9. O-O {[%clk 0:03:03.2]} 9... Nc6 {[%clk
0:02:21]} 10. Be3 {[%clk 0:03:02.1]} 10... Bg4 {[%clk 0:02:19]} 11. f3 {[%clk
0:03:02]} 11... Bd7 {[%clk 0:02:17.2]} 12. Rb1 {[%clk 0:02:58.4]} 12... Qc7
{[%clk 0:01:55.4]} 13. Qd2 {[%clk 0:02:52.9]} 13... Rad8 {[%clk 0:01:47.6]} 14.
Rfc1 {[%clk 0:02:50.9]} 14... cxd4 {[%clk 0:00:53]} 15. cxd4 {[%clk 0:02:51.8]}
15... e6 {[%clk 0:00:43.8]} 16. Qb2 {[%clk 0:02:47.6]} 16... Bc8 {[%clk
0:00:41.8]} 17. e5 {[%clk 0:02:46.1]} 17... b6 {[%clk 0:00:35.9]} 18. Bb5 {[%clk
0:02:43.7]} 18... Bb7 {[%clk 0:00:30.6]} 19. Qc3 {[%clk 0:02:43.3]} 19... Rc8
{[%clk 0:00:20.2]} 20. Ng3 {[%clk 0:02:43.5]} 20... f6 {[%clk 0:00:18.8]} 21.
exf6 {[%clk 0:02:38.6]} 21... Bxf6 {[%clk 0:00:18.4]} 22. Ne4 {[%clk 0:02:39.5]}
22... Bg7 {[%clk 0:00:18]} 23. Qb3 {[%clk 0:02:38.1]} 23... Qe7 {[%clk
0:00:14.2]} 24. d5 {[%clk 0:02:37.1]} 24... exd5 {[%clk 0:00:14.3]} 25. Qxd5+
{[%clk 0:02:38]} 25... Kh8 {[%clk 0:00:11.4]} 26. Bxc6 {[%clk 0:02:37.2]} 26...
Rfd8 {[%clk 0:00:11.3]} 27. Qb5 {[%clk 0:02:32.4]} 27... a6 {[%clk 0:00:09.9]}
28. Qxb6 {[%clk 0:02:32.4]} 28... Bxc6 {[%clk 0:00:10.1]} 29. Rxc6 {[%clk
0:02:33.3]} 29... Rb8 {[%clk 0:00:08.8]} 30. Qxb8 {[%clk 0:02:32]} 30... Rxb8
{[%clk 0:00:08.8]} 31. Rxb8+ {[%clk 0:02:32.9]} 31... Bf8 {[%clk 0:00:08.9]} 32.
Bd4+ {[%clk 0:02:33.1]} 32... Kg8 {[%clk 0:00:05.7]} 33. Rcc8 {[%clk 0:02:33.7]}
1-0

[Event "*** Titled Tuesday Blitz"]
[Site "Chess.com"]
[Date "2021.04.20"]
[Round "2"]
[White "Cuajada_Zero"]
[Black "nocnypako"]
[Result "0-1"]
[WhiteElo "2314"]
[BlackElo "2520"]
[TimeControl "180+1"]
[EndTime "10:15:02 PDT"]
[Termination "nocnypako won by resignation"]

1. d4 {[%clk 0:03:00.9]} 1... Nf6 {[%clk 0:03:00.2]} 2. Bg5 {[%clk 0:03:00.3]}
2... c5 {[%clk 0:02:57.7]} 3. Nc3 {[%clk 0:02:58.3]} 3... d5 {[%clk 0:02:46.2]}
4. e3 {[%clk 0:02:55.3]} 4... e6 {[%clk 0:02:43.8]} 5. Nf3 {[%clk 0:02:54.3]}
5... Nc6 {[%clk 0:02:42.1]} 6. Be2 {[%clk 0:02:52.3]} 6... h6 {[%clk 0:02:41.6]}
7. Bh4 {[%clk 0:02:51.8]} 7... Be7 {[%clk 0:02:41.8]} 8. O-O {[%clk 0:02:51.5]}
8... O-O {[%clk 0:02:40.2]} 9. a3 {[%clk 0:02:49.5]} 9... b6 {[%clk 0:02:39.2]}
10. Rc1 {[%clk 0:02:48.4]} 10... Bb7 {[%clk 0:02:39]} 11. Nb1 {[%clk 0:02:28.3]}
11... Ne4 {[%clk 0:02:31.6]} 12. Bxe7 {[%clk 0:02:29.2]} 12... Qxe7 {[%clk
0:02:31.9]} 13. Nbd2 {[%clk 0:02:25.5]} 13... Rfd8 {[%clk 0:02:28.4]} 14. c3
{[%clk 0:02:17.9]} 14... Rac8 {[%clk 0:02:27.6]} 15. Bd3 {[%clk 0:02:14]} 15...
f5 {[%clk 0:02:12.3]} 16. Qe2 {[%clk 0:02:02.6]} 16... Qf6 {[%clk 0:01:49.4]}
17. Ne1 {[%clk 0:01:44.1]} 17... Nxd2 {[%clk 0:01:21]} 18. Qxd2 {[%clk
0:01:43.6]} 18... e5 {[%clk 0:01:21.9]} 19. dxe5 {[%clk 0:01:43.8]} 19... Nxe5
{[%clk 0:01:20.9]} 20. Be2 {[%clk 0:01:43.2]} 20... Kh8 {[%clk 0:01:04.2]} 21.
Nf3 {[%clk 0:01:43.1]} 21... Nc4 {[%clk 0:00:54.7]} 22. Rfd1 {[%clk 0:01:35.9]}
22... Nxd2 {[%clk 0:00:54]} 0-1

[Event "*** Titled Tuesday Blitz"]
[Site "Chess.com"]
[Date "2021.04.20"]
[Round "2"]
[White "Hikaru"]
[Black "Diego_FloresQ"]
[Result "1-0"]
[WhiteElo "3162"]
[BlackElo "2610"]
[TimeControl "180+1"]
[EndTime "10:15:03 PDT"]
[Termination "Hikaru won on time"]

1. Nf3 {[%clk 0:03:00.9]} 1... c5 {[%clk 0:00:07.4]} 2. b3 {[%clk 0:02:56.8]}
2... Nc6 {[%clk 0:00:07.5]} 3. Bb2 {[%clk 0:02:57.5]} 3... Nf6 {[%clk
0:00:08.1]} 4. e3 {[%clk 0:02:57.8]} 4... g6 {[%clk 0:00:08.5]} 5. d4 {[%clk
0:02:58.2]} 5... cxd4 {[%clk 0:00:08.9]} 6. Nxd4 {[%clk 0:02:58.8]} 6... d5
{[%clk 0:00:09.8]} 7. c4 {[%clk 0:02:58.9]} 7... Bg7 {[%clk 0:00:09.5]} 8. Be2
{[%clk 0:02:58.1]} 8... dxc4 {[%clk 0:00:09.5]} 9. Bxc4 {[%clk 0:02:57.2]} 9...
Nxd4 {[%clk 0:00:08.1]} 10. Bxd4 {[%clk 0:02:57.1]} 10... O-O {[%clk 0:00:08.2]}
11. O-O {[%clk 0:02:57.7]} 11... b6 {[%clk 0:00:08]} 12. Qf3 {[%clk 0:02:55.1]}
12... Rb8 {[%clk 0:00:08]} 13. Be5 {[%clk 0:02:54.7]} 13... Bb7 {[%clk
0:00:07.8]} 14. Qe2 {[%clk 0:02:53.8]} 14... Rc8 {[%clk 0:00:08]} 15. Rd1 {[%clk
0:02:53.7]} 15... Qe8 {[%clk 0:00:08.6]} 16. Nc3 {[%clk 0:02:52.9]} 16... Qc6
{[%clk 0:00:06.5]} 17. Nd5 {[%clk 0:02:49.3]} 17... Rfe8 {[%clk 0:00:03.3]} 18.
Bb5 {[%clk 0:01:50.4]} 1-0

[Event "*** Titled Tuesday Blitz"]
[Site "Chess.com"]
[Date "2021.04.20"]
[Round "2"]
[White "Aradhya2000"]
[Black "narutosmith"]
[Result "1-0"]
[WhiteElo "2597"]
[BlackElo "2323"]
[TimeControl "180+1"]
[EndTime "10:15:04 PDT"]
[Termination "Aradhya2000 won by resignation"]

1. d4 {[%clk 0:03:00.9]} 1... Nf6 {[%clk 0:02:59.5]} 2. Nf3 {[%clk 0:03:01.3]}
2... e6 {[%clk 0:02:59.6]} 3. e3 {[%clk 0:03:01.6]} 3... b6 {[%clk 0:02:59.2]}
4. Bd3 {[%clk 0:03:00.6]} 4... Bb7 {[%clk 0:02:59.8]} 5. O-O {[%clk 0:03:01.1]}
5... c5 {[%clk 0:02:59.6]} 6. c4 {[%clk 0:02:53.7]} 6... Be7 {[%clk 0:02:47.7]}
7. Nc3 {[%clk 0:02:53.2]} 7... cxd4 {[%clk 0:02:48]} 8. exd4 {[%clk 0:02:52.2]}
8... O-O {[%clk 0:02:46.9]} 9. d5 {[%clk 0:02:52]} 9... exd5 {[%clk 0:02:31]}
10. cxd5 {[%clk 0:02:52.9]} 10... Bb4 {[%clk 0:02:23.4]} 11. Bg5 {[%clk
0:02:47.5]} 11... h6 {[%clk 0:02:21.9]} 12. Bh4 {[%clk 0:02:47.6]} 12... Bxc3
{[%clk 0:02:10.9]} 13. bxc3 {[%clk 0:02:47]} 13... d6 {[%clk 0:02:11.6]} 14. c4
{[%clk 0:02:15.5]} 14... Nbd7 {[%clk 0:02:08]} 15. Re1 {[%clk 0:02:15.8]} 15...
Re8 {[%clk 0:02:01.6]} 16. Qd2 {[%clk 0:02:15.8]} 16... Qc7 {[%clk 0:01:59.8]}
17. Nd4 {[%clk 0:02:15.2]} 17... a6 {[%clk 0:01:57.7]} 18. Nf5 {[%clk
0:02:13.8]} 18... Rxe1+ {[%clk 0:01:50.4]} 19. Rxe1 {[%clk 0:02:13]} 19... Re8
{[%clk 0:01:50.4]} 20. Nxh6+ {[%clk 0:02:02]} 20... Kf8 {[%clk 0:01:31.4]} 21.
Rxe8+ {[%clk 0:02:01.8]} 21... Nxe8 {[%clk 0:01:31.1]} 22. Nf5 {[%clk 0:02:02]}
22... Ne5 {[%clk 0:01:23.6]} 23. Qe2 {[%clk 0:01:57.5]} 23... b5 {[%clk
0:01:11.1]} 24. Be7+ {[%clk 0:01:52.7]} 24... Kg8 {[%clk 0:01:09.1]} 25. Bxd6
{[%clk 0:01:52.9]} 25... Nf3+ {[%clk 0:00:45.8]} 26. gxf3 {[%clk 0:01:49]} 26...
Nxd6 {[%clk 0:00:45.9]} 27. Nxd6 {[%clk 0:01:49.3]} 27... Qxd6 {[%clk
0:00:45.4]} 28. Qe8+ {[%clk 0:01:49.4]} 28... Qf8 {[%clk 0:00:45.5]} 29. Bh7+
{[%clk 0:01:49.7]} 29... Kxh7 {[%clk 0:00:45.3]} 30. Qxf8 {[%clk 0:01:50.6]} 1-0

[Event "*** Titled Tuesday Blitz"]
[Site "Chess.com"]
[Date "2021.04.20"]
[Round "2"]
[White "PavelShkapenko"]
[Black "Mikasinski"]
[Result "1-0"]
[WhiteElo "2724"]
[BlackElo "2498"]
[TimeControl "180+1"]
[EndTime "10:15:08 PDT"]
[Termination "PavelShkapenko won by checkmate"]

1. e4 {[%clk 0:02:55.5]} 1... c5 {[%clk 0:02:59.5]} 2. c3 {[%clk 0:02:54.1]}
2... Nf6 {[%clk 0:02:59.3]} 3. e5 {[%clk 0:02:52.8]} 3... Nd5 {[%clk 0:02:59.9]}
4. d4 {[%clk 0:02:49.5]} 4... cxd4 {[%clk 0:03:00.8]} 5. cxd4 {[%clk 0:02:49.4]}
5... e6 {[%clk 0:03:01.4]} 6. Nc3 {[%clk 0:02:47.3]} 6... Nxc3 {[%clk
0:03:00.6]} 7. bxc3 {[%clk 0:02:48.2]} 7... d6 {[%clk 0:02:59.8]} 8. f4 {[%clk
0:02:48.4]} 8... Qc7 {[%clk 0:02:55.5]} 9. Bd2 {[%clk 0:02:48.1]} 9... b6 {[%clk
0:02:56.1]} 10. Bd3 {[%clk 0:02:45.5]} 10... Bb7 {[%clk 0:02:55.3]} 11. Nf3
{[%clk 0:02:45.7]} 11... Nd7 {[%clk 0:02:53.4]} 12. O-O {[%clk 0:02:45.5]} 12...
Be7 {[%clk 0:02:53.9]} 13. Qe2 {[%clk 0:02:44.8]} 13... dxe5 {[%clk 0:02:40.2]}
14. fxe5 {[%clk 0:02:41.1]} 14... O-O {[%clk 0:02:39.9]} 15. c4 {[%clk
0:02:29.8]} 15... Rad8 {[%clk 0:02:36.7]} 16. Ng5 {[%clk 0:02:28.6]} 16... g6
{[%clk 0:02:27.1]} 17. Nxh7 {[%clk 0:01:39]} 17... Nxe5 {[%clk 0:01:47.6]} 18.
Nxf8 {[%clk 0:01:18]} 18... Nxd3 {[%clk 0:01:47.3]} 19. Nxe6 {[%clk 0:01:17.3]}
19... fxe6 {[%clk 0:01:42.3]} 20. Qxd3 {[%clk 0:01:02.2]} 20... Kg7 {[%clk
0:01:31]} 21. Bf4 {[%clk 0:00:50.1]} 21... Qc6 {[%clk 0:01:26.3]} 22. Be5+
{[%clk 0:00:48]} 22... Kh7 {[%clk 0:01:16.9]} 23. Qh3+ {[%clk 0:00:47.1]} 23...
Kg8 {[%clk 0:01:17.3]} 24. Qh8# {[%clk 0:00:46.8]} 1-0

[Event "*** Titled Tuesday Blitz"]
[Site "Chess.com"]
[Date "2021.04.20"]
[Round "2"]
[White "NoboaKevin1999"]
[Black "tusplingher"]
[Result "1-0"]
[WhiteElo "2463"]
[BlackElo "2252"]
[TimeControl "180+1"]
[EndTime "10:15:08 PDT"]
[Termination "NoboaKevin1999 won by checkmate"]

1. d4 {[%clk 0:03:00.9]} 1... Nf6 {[%clk 0:02:58.9]} 2. c4 {[%clk 0:02:59.8]}
2... c5 {[%clk 0:02:57.1]} 3. d5 {[%clk 0:02:59.8]} 3... b5 {[%clk 0:02:56.7]}
4. Qc2 {[%clk 0:02:55.4]} 4... Na6 {[%clk 0:02:54.9]} 5. a3 {[%clk 0:02:52.8]}
5... bxc4 {[%clk 0:02:53.6]} 6. e4 {[%clk 0:02:52.7]} 6... d6 {[%clk 0:02:53]}
7. Bxc4 {[%clk 0:02:52.5]} 7... Nc7 {[%clk 0:02:53]} 8. Nf3 {[%clk 0:02:52.1]}
8... g6 {[%clk 0:02:53]} 9. b3 {[%clk 0:02:50.2]} 9... Bg7 {[%clk 0:02:52.8]}
10. Bb2 {[%clk 0:02:50.4]} 10... O-O {[%clk 0:02:52.8]} 11. O-O {[%clk
0:02:50.8]} 11... e6 {[%clk 0:02:40]} 12. dxe6 {[%clk 0:02:47.8]} 12... Bxe6
{[%clk 0:02:39.5]} 13. Bxe6 {[%clk 0:02:46.7]} 13... Nxe6 {[%clk 0:02:39.5]} 14.
e5 {[%clk 0:02:46.8]} 14... dxe5 {[%clk 0:02:35.3]} 15. Bxe5 {[%clk 0:02:46.1]}
15... Qb6 {[%clk 0:02:11.2]} 16. Nbd2 {[%clk 0:02:39]} 16... Rad8 {[%clk
0:02:05.4]} 17. Nc4 {[%clk 0:02:38]} 17... Qb7 {[%clk 0:02:03]} 18. Qb2 {[%clk
0:02:32.3]} 18... Nd5 {[%clk 0:01:59.4]} 19. Bxg7 {[%clk 0:02:28]} 19... Nxg7
{[%clk 0:01:59]} 20. Rad1 {[%clk 0:02:22]} 20... Nf4 {[%clk 0:01:52]} 21. h4
{[%clk 0:02:10.4]} 21... Nge6 {[%clk 0:01:38.6]} 22. Nd6 {[%clk 0:01:55.2]}
22... Qc6 {[%clk 0:01:29.5]} 23. Nc4 {[%clk 0:01:37.1]} 23... Qb7 {[%clk
0:01:26.2]} 24. Nce5 {[%clk 0:01:35.6]} 24... Nd4 {[%clk 0:01:23.1]} 25. Ng4
{[%clk 0:01:17.2]} 25... Nxf3+ {[%clk 0:01:07.1]} 26. gxf3 {[%clk 0:01:17]}
26... Qxf3 {[%clk 0:01:01.4]} 27. Nh6# {[%clk 0:01:16.5]} 1-0

[Event "*** Titled Tuesday Blitz"]
[Site "Chess.com"]
[Date "2021.04.20"]
[Round "2"]
[White "aljado"]
[Black "Smile2005"]
[Result "1-0"]
[WhiteElo "2069"]
[BlackElo "2370"]
[TimeControl "180+1"]
[EndTime "10:15:08 PDT"]
[Termination "aljado won by resignation"]

1. e4 {[%clk 0:03:00.9]} 1... d5 {[%clk 0:02:58.6]} 2. d4 {[%clk 0:02:58.8]}
2... dxe4 {[%clk 0:02:57.8]} 3. Nc3 {[%clk 0:02:59.3]} 3... Nf6 {[%clk
0:02:58.1]} 4. f3 {[%clk 0:02:59.4]} 4... exf3 {[%clk 0:02:58.1]} 5. Nxf3 {[%clk
0:02:59.9]} 5... e6 {[%clk 0:02:58.4]} 6. Bd3 {[%clk 0:02:57.3]} 6... Bd6 {[%clk
0:02:58.6]} 7. O-O {[%clk 0:02:57.1]} 7... Nc6 {[%clk 0:02:59.1]} 8. Bg5 {[%clk
0:02:56.4]} 8... Be7 {[%clk 0:02:59]} 9. Bb5 {[%clk 0:02:42]} 9... Bd7 {[%clk
0:02:53.1]} 10. Bxf6 {[%clk 0:02:34.3]} 10... Bxf6 {[%clk 0:02:52.8]} 11. Ne4
{[%clk 0:02:34.3]} 11... Be7 {[%clk 0:02:49.9]} 12. d5 {[%clk 0:02:26.6]} 12...
exd5 {[%clk 0:02:48.3]} 13. Qxd5 {[%clk 0:02:26]} 13... O-O {[%clk 0:02:43.3]}
14. Nfg5 {[%clk 0:02:23.7]} 14... Be6 {[%clk 0:02:23.8]} 15. Qxd8 {[%clk
0:02:19.7]} 15... Nxd8 {[%clk 0:02:21.9]} 16. Nxe6 {[%clk 0:02:16.4]} 16... Nxe6
{[%clk 0:02:22]} 17. Rad1 {[%clk 0:02:12.5]} 17... c6 {[%clk 0:02:22]} 18. Bc4
{[%clk 0:02:09.4]} 18... Rad8 {[%clk 0:02:22.1]} 19. c3 {[%clk 0:01:59.6]} 19...
Rxd1 {[%clk 0:02:17]} 20. Rxd1 {[%clk 0:01:57.9]} 20... Rd8 {[%clk 0:02:15.5]}
21. Rf1 {[%clk 0:01:43.3]} 21... h6 {[%clk 0:02:08.1]} 22. g3 {[%clk 0:01:41.5]}
22... a5 {[%clk 0:02:06.3]} 23. a4 {[%clk 0:01:20.3]} 23... Rd7 {[%clk
0:02:00.6]} 24. Kf2 {[%clk 0:01:17.4]} 24... Bc5+ {[%clk 0:02:00.2]} 25. Kf3
{[%clk 0:01:10.3]} 25... Kf8 {[%clk 0:01:49]} 26. Bxe6 {[%clk 0:01:07.3]} 26...
fxe6 {[%clk 0:01:32.2]} 27. Nxc5 {[%clk 0:01:05.6]} 27... Rd2 {[%clk 0:01:32.5]}
28. Rf2 {[%clk 0:01:03.8]} 28... Rd1 {[%clk 0:01:27.4]} 29. Nxb7 {[%clk
0:01:01.6]} 29... Ra1 {[%clk 0:01:27.2]} 30. Nxa5 {[%clk 0:01:00.7]} 30... Rxa4
{[%clk 0:01:27]} 31. Nxc6 {[%clk 0:01:00.4]} 1-0

[Event "*** Titled Tuesday Blitz"]
[Site "Chess.com"]
[Date "2021.04.20"]
[Round "2"]
[White "ErikBlomqvist"]
[Black "AlexTriapishko"]
[Result "0-1"]
[WhiteElo "2581"]
[BlackElo "2893"]
[TimeControl "180+1"]
[EndTime "10:15:14 PDT"]
[Termination "AlexTriapishko won by resignation"]

1. e4 {[%clk 0:01:54]} 1... e5 {[%clk 0:02:58.9]} 2. Bc4 {[%clk 0:01:53.2]} 2...
Nc6 {[%clk 0:02:58.5]} 3. d3 {[%clk 0:01:52.5]} 3... Nf6 {[%clk 0:02:58.8]} 4.
a3 {[%clk 0:01:52.7]} 4... Bc5 {[%clk 0:02:47.2]} 5. Nc3 {[%clk 0:01:51.3]} 5...
a6 {[%clk 0:02:45.4]} 6. h3 {[%clk 0:01:50.5]} 6... d6 {[%clk 0:02:45.6]} 7.
Nge2 {[%clk 0:01:50.6]} 7... O-O {[%clk 0:02:41]} 8. Ng3 {[%clk 0:01:48.5]} 8...
Be6 {[%clk 0:02:38.2]} 9. O-O {[%clk 0:01:44.8]} 9... h6 {[%clk 0:02:33.6]} 10.
Kh1 {[%clk 0:01:18.4]} 10... Qd7 {[%clk 0:02:26.4]} 11. Nd5 {[%clk 0:01:07.1]}
11... Bxd5 {[%clk 0:02:23.7]} 12. exd5 {[%clk 0:01:06.8]} 12... Ne7 {[%clk
0:02:22.3]} 13. Qf3 {[%clk 0:01:06.7]} 13... Ng6 {[%clk 0:02:15.1]} 14. Bxh6
{[%clk 0:01:03.3]} 14... Nh4 {[%clk 0:02:14.5]} 15. Qe2 {[%clk 0:00:30.8]} 15...
gxh6 {[%clk 0:02:14.3]} 16. f4 {[%clk 0:00:31.4]} 16... Rae8 {[%clk 0:02:01.6]}
17. f5 {[%clk 0:00:21.5]} 17... Kh7 {[%clk 0:01:44.8]} 18. Nh5 {[%clk
0:00:20.7]} 18... Qd8 {[%clk 0:01:43.2]} 19. Ng3 {[%clk 0:00:12.9]} 19... Rg8
{[%clk 0:01:40.3]} 20. Ne4 {[%clk 0:00:12.8]} 20... Rxg2 {[%clk 0:01:36.2]} 0-1

[Event "*** Titled Tuesday Blitz"]
[Site "Chess.com"]
[Date "2021.04.20"]
[Round "2"]
[White "Raud100"]
[Black "mamonika"]
[Result "1-0"]
[WhiteElo "2385"]
[BlackElo "2050"]
[TimeControl "180+1"]
[EndTime "10:15:16 PDT"]
[Termination "Raud100 won by checkmate"]

1. d4 {[%clk 0:03:00.9]} 1... d5 {[%clk 0:02:55.1]} 2. c4 {[%clk 0:03:00.7]}
2... e6 {[%clk 0:02:54.7]} 3. Nf3 {[%clk 0:03:01.2]} 3... Nf6 {[%clk 0:02:53.7]}
4. Nc3 {[%clk 0:03:02.1]} 4... Be7 {[%clk 0:02:49.8]} 5. Bg5 {[%clk 0:03:02.5]}
5... O-O {[%clk 0:02:46.4]} 6. e3 {[%clk 0:03:02.6]} 6... Nbd7 {[%clk
0:02:23.6]} 7. Rc1 {[%clk 0:03:01.9]} 7... c6 {[%clk 0:02:18.9]} 8. Bd3 {[%clk
0:03:01.4]} 8... dxc4 {[%clk 0:01:57.8]} 9. Bxc4 {[%clk 0:03:02.3]} 9... Nd5
{[%clk 0:01:58.1]} 10. Bxe7 {[%clk 0:02:58.5]} 10... Qxe7 {[%clk 0:01:57.8]} 11.
O-O {[%clk 0:02:59]} 11... Nxc3 {[%clk 0:01:52]} 12. Rxc3 {[%clk 0:02:55.6]}
12... e5 {[%clk 0:01:51.2]} 13. d5 {[%clk 0:02:56.1]} 13... e4 {[%clk
0:01:42.3]} 14. Nd4 {[%clk 0:02:54.8]} 14... cxd5 {[%clk 0:01:34.9]} 15. Bxd5
{[%clk 0:02:53.5]} 15... Nb6 {[%clk 0:01:35.2]} 16. Bb3 {[%clk 0:02:52.2]} 16...
Kh8 {[%clk 0:01:16.1]} 17. Qc2 {[%clk 0:02:48.1]} 17... f5 {[%clk 0:01:16.1]}
18. Rc7 {[%clk 0:02:47.5]} 18... Qg5 {[%clk 0:01:15.5]} 19. g3 {[%clk
0:02:42.9]} 19... a5 {[%clk 0:00:43]} 20. a3 {[%clk 0:02:28.6]} 20... a4 {[%clk
0:00:39.8]} 21. Ba2 {[%clk 0:02:27.5]} 21... Ra5 {[%clk 0:00:39.1]} 22. Rc1
{[%clk 0:02:25.5]} 22... Qd8 {[%clk 0:00:19.7]} 23. Qc3 {[%clk 0:02:09.9]} 23...
Ra6 {[%clk 0:00:08.5]} 24. Ne6 {[%clk 0:01:50.2]} 24... Bxe6 {[%clk 0:00:08.2]}
25. Qxg7# {[%clk 0:01:49]} 1-0

[Event "*** Titled Tuesday Blitz"]
[Site "Chess.com"]
[Date "2021.04.20"]
[Round "2"]
[White "MustafayevFarid2004"]
[Black "Komiagina_Maria"]
[Result "1-0"]
[WhiteElo "2460"]
[BlackElo "2240"]
[TimeControl "180+1"]
[EndTime "10:15:23 PDT"]
[Termination "MustafayevFarid2004 won by resignation"]

1. d4 {[%clk 0:03:00.9]} 1... Nf6 {[%clk 0:02:55.1]} 2. c4 {[%clk 0:03:00.8]}
2... e6 {[%clk 0:02:54.5]} 3. Nc3 {[%clk 0:03:00.5]} 3... Bb4 {[%clk 0:02:53.4]}
4. e3 {[%clk 0:02:57.5]} 4... O-O {[%clk 0:02:49.3]} 5. Bd3 {[%clk 0:02:57.3]}
5... d5 {[%clk 0:02:46.6]} 6. Ne2 {[%clk 0:02:55.8]} 6... c5 {[%clk 0:02:45.1]}
7. a3 {[%clk 0:02:54.8]} 7... Bxc3+ {[%clk 0:02:44.4]} 8. bxc3 {[%clk
0:02:54.3]} 8... dxc4 {[%clk 0:02:42.6]} 9. Bxc4 {[%clk 0:02:54.3]} 9... Nbd7
{[%clk 0:02:41.8]} 10. O-O {[%clk 0:02:52.3]} 10... b6 {[%clk 0:02:38.3]} 11. f3
{[%clk 0:02:50.7]} 11... Qc7 {[%clk 0:02:36.9]} 12. Bd3 {[%clk 0:02:49.5]} 12...
e5 {[%clk 0:02:33]} 13. d5 {[%clk 0:02:42.4]} 13... c4 {[%clk 0:02:27]} 14. Bf5
{[%clk 0:02:14.8]} 14... Bb7 {[%clk 0:02:16.4]} 15. e4 {[%clk 0:02:12.7]} 15...
Nc5 {[%clk 0:02:12.4]} 16. Be3 {[%clk 0:02:06.3]} 16... Nd3 {[%clk 0:01:58.9]}
17. Nc1 {[%clk 0:02:02.5]} 17... Ba6 {[%clk 0:01:44.2]} 18. Na2 {[%clk
0:01:43.6]} 18... Rad8 {[%clk 0:01:38.1]} 19. Nb4 {[%clk 0:01:43.4]} 19... Nxb4
{[%clk 0:01:29.3]} 20. axb4 {[%clk 0:01:43.5]} 20... Bb5 {[%clk 0:01:25.2]} 21.
f4 {[%clk 0:01:39]} 21... Rfe8 {[%clk 0:01:11.8]} 22. fxe5 {[%clk 0:01:37.6]}
22... Qxe5 {[%clk 0:01:09.1]} 23. Bd4 {[%clk 0:01:37.8]} 23... Qe7 {[%clk
0:01:07.7]} 24. Bxf6 {[%clk 0:01:36.2]} 24... Qxf6 {[%clk 0:00:44.6]} 25. Bxh7+
{[%clk 0:01:33.7]} 25... Kxh7 {[%clk 0:00:44.5]} 26. Rxf6 {[%clk 0:01:34.4]}
26... gxf6 {[%clk 0:00:44.6]} 27. Rxa7 {[%clk 0:01:35.1]} 27... Bd7 {[%clk
0:00:35.3]} 28. Rxd7 {[%clk 0:01:34.9]} 1-0